[Event "Nové Hrady - Open"]
[Site "Nové Hrady, Czech Republic"]
[Date "2023.08.13"]
[Round "1.6"]
[White "Mácová, Markéta"]
[Black "Slabý, Matěj"]
[Result "0-1"]
[TimeControl "2x90min+30s"]
[WhiteFideId "23715588"]
[BlackFideId "23734876"]
[WhiteElo "1304"]
[BlackElo "1894"]

1. e4 {[%clk 01:30:56]} {[%emt 00:00:04]} c5 {[%clk 01:30:15]} {[%emt
00:00:46]} 2. Nf3 {[%clk 01:31:05]} {[%emt 00:00:21]} e6 {[%clk 01:30:34]}
{[%emt 00:00:09]} 3. d4 {[%clk 01:31:23]} {[%emt 00:00:13]} cxd4 {[%clk
01:30:58]} {[%emt 00:00:06]} 4. Nxd4 {[%clk 01:31:45]} {[%emt 00:00:09]} a6
{[%clk 01:31:18]} {[%emt 00:00:09]} 5. Nc3 {[%clk 01:31:33]} {[%emt 00:00:43]}
Qc7 {[%clk 01:31:12]} {[%emt 00:00:35]} 6. Bd3 {[%clk 01:30:51]} {[%emt
00:01:12]} d6 {[%clk 01:31:04]} {[%emt 00:00:37]} 7. O-O {[%clk 01:30:21]}
{[%emt 00:01:01]} Nf6 {[%clk 01:31:18]} {[%emt 00:00:16]} 8. Qf3 {[%clk
01:27:34]} {[%emt 00:03:17]} Nbd7 {[%clk 01:31:10]} {[%emt 00:00:38]} 9. Be3
{[%clk 01:25:10]} {[%emt 00:02:54]} Ne5 {[%clk 01:18:56]} {[%emt 00:12:44]} 10.
Qe2 {[%clk 01:22:47]} {[%emt 00:02:53]} b5 {[%clk 01:10:23]} {[%emt 00:09:02]}
11. a3 {[%clk 01:19:14]} {[%emt 00:04:05]} Bd7 {[%clk 01:07:58]} {[%emt
00:02:54]} 12. Rfd1 {[%clk 01:12:18]} {[%emt 00:07:26]} Be7 {[%clk 01:07:52]}
{[%emt 00:00:35]} 13. Rac1 {[%clk 01:06:11]} {[%emt 00:06:38]} O-O {[%clk
01:07:57]} {[%emt 00:00:24]} 14. f3 {[%clk 01:02:03]} {[%emt 00:04:39]} Rfc8
{[%clk 01:06:39]} {[%emt 00:01:48]} 15. Bf2 {[%clk 00:59:13]} {[%emt 00:03:20]}
Nc4 {[%clk 01:03:46]} {[%emt 00:03:22]} 16. Bxc4 {[%clk 00:57:58]} {[%emt
00:01:45]} Qxc4 {[%clk 01:03:48]} {[%emt 00:00:27]} 17. Qxc4 {[%clk 00:55:10]}
{[%emt 00:03:20]} Rxc4 {[%clk 01:04:09]} {[%emt 00:00:09]} 18. Rd3 {[%clk
00:49:54]} {[%emt 00:05:47]} Be8 {[%clk 01:01:58]} {[%emt 00:02:39]} 19. Rcd1
{[%clk 00:48:38]} {[%emt 00:01:47]} Rac8 {[%clk 00:59:03]} {[%emt 00:03:24]} 20.
Kf1 {[%clk 00:43:19]} {[%emt 00:05:49]} Kf8 {[%clk 00:55:50]} {[%emt 00:03:44]}
21. Be1 {[%clk 00:37:00]} {[%emt 00:06:49]} g5 {[%clk 00:46:34]} {[%emt
00:09:46]} 22. g4 {[%clk 00:34:09]} {[%emt 00:03:21]} Nd7 {[%clk 00:46:18]}
{[%emt 00:00:44]} 23. Ke2 {[%clk 00:28:20]} {[%emt 00:06:20]} Ne5 {[%clk
00:45:23]} {[%emt 00:01:24]} 24. R3d2 {[%clk 00:28:19]} {[%emt 00:00:33]} R4c7
{[%clk 00:45:26]} {[%emt 00:00:26]} 25. Bg3 {[%clk 00:26:54]} {[%emt 00:01:55]}
Nc4 {[%clk 00:45:33]} {[%emt 00:00:23]} 26. Rb1 {[%clk 00:23:53]} {[%emt
00:03:31]} Nxd2 {[%clk 00:45:07]} {[%emt 00:00:57]} 27. Kxd2 {[%clk 00:23:54]}
{[%emt 00:00:29]} Rb7 {[%clk 00:41:56]} {[%emt 00:03:40]} 28. b4 {[%clk
00:18:54]} {[%emt 00:05:30]} Rd7 {[%clk 00:40:41]} {[%emt 00:01:46]} 29. Rd1
{[%clk 00:15:01]} {[%emt 00:04:23]} Bf6 {[%clk 00:39:20]} {[%emt 00:01:48]} 30.
Nce2 {[%clk 00:11:52]} {[%emt 00:03:41]} Be5 {[%clk 00:37:37]} {[%emt
00:02:13]} 31. Kc1 {[%clk 00:10:39]} {[%emt 00:01:43]} Rdc7 {[%clk 00:34:55]}
{[%emt 00:03:12]} 32. Rd2 {[%clk 00:10:26]} {[%emt 00:00:43]} Bc6 {[%clk
00:34:12]} {[%emt 00:01:11]} 33. Kd1 {[%clk 00:06:28]} {[%emt 00:04:30]} Bb7
{[%clk 00:34:03]} {[%emt 00:00:40]} 34. Kc1 {[%clk 00:05:39]} {[%emt 00:01:19]}
Ke7 {[%clk 00:33:54]} {[%emt 00:00:39]} 35. Kd1 {[%clk 00:05:16]} {[%emt
00:00:53]} Rc4 {[%clk 00:33:23]} {[%emt 00:01:01]} 36. Nb3 {[%clk 00:05:10]}
{[%emt 00:00:37]} Ba8 {[%clk 00:32:13]} {[%emt 00:01:39]} 37. Na5 {[%clk
00:04:56]} {[%emt 00:00:44]} R4c7 {[%clk 00:32:24]} {[%emt 00:00:19]} 38. Nb3
{[%clk 00:04:50]} {[%emt 00:00:35]} Bxg3 {[%clk 00:26:36]} {[%emt 00:06:18]} 39.
Nxg3 {[%clk 00:05:11]} {[%emt 00:00:10]} Rc3 {[%clk 00:26:33]} {[%emt
00:00:31]} 40. Rf2 {[%clk 00:05:07]} {[%emt 00:00:36]} d5 {[%clk 00:25:20]}
{[%emt 00:01:43]} 41. e5 {[%clk 00:04:53]} {[%emt 00:00:44]} Re3 {[%clk
00:20:52]} {[%emt 00:04:58]} 42. Nc5 {[%clk 00:04:06]} {[%emt 00:01:17]} Rxc5
{[%clk 00:21:11]} {[%emt 00:00:10]} 43. bxc5 {[%clk 00:04:29]} {[%emt
00:00:07]} Rxe5 {[%clk 00:21:35]} {[%emt 00:00:06]} 44. Kd2 {[%clk 00:03:33]}
{[%emt 00:01:27]} d4 {[%clk 00:21:47]} {[%emt 00:00:18]} 45. Kd3 {[%clk
00:03:26]} {[%emt 00:00:36]} Rxc5 {[%clk 00:21:22]} {[%emt 00:00:55]} 46. Kxd4
{[%clk 00:03:38]} {[%emt 00:00:19]} Rc4+ {[%clk 00:21:44]} {[%emt 00:00:07]} 47.
Kd3 {[%clk 00:03:33]} {[%emt 00:00:36]} Ra4 {[%clk 00:21:43]} {[%emt 00:00:31]}
48. Kd2 {[%clk 00:02:38]} {[%emt 00:01:24]} Rxa3 {[%clk 00:22:04]} {[%emt
00:00:08]} 49. f4 {[%clk 00:03:00]} {[%emt 00:00:10]} Ra4 {[%clk 00:20:07]}
{[%emt 00:02:27]} 50. Nh5 {[%clk 00:02:30]} {[%emt 00:01:00]} gxf4 {[%clk
00:19:55]} {[%emt 00:00:42]} 51. Rxf4 {[%clk 00:02:40]} {[%emt 00:00:20]} Rxf4
{[%clk 00:20:16]} {[%emt 00:00:08]} 52. Nxf4 {[%clk 00:03:06]} {[%emt
00:00:05]} h6 {[%clk 00:20:35]} {[%emt 00:00:11]} 53. Kc3 {[%clk 00:03:15]}
{[%emt 00:00:21]} a5 {[%clk 00:20:47]} {[%emt 00:00:19]} 54. h4 {[%clk
00:03:13]} {[%emt 00:00:31]} Kd6 {[%clk 00:20:50]} {[%emt 00:00:27]} 55. g5
{[%clk 00:02:53]} {[%emt 00:00:49]} hxg5 {[%clk 00:21:12]} {[%emt 00:00:07]} 56.
hxg5 {[%clk 00:03:20]} {[%emt 00:00:04]} Be4 {[%clk 00:21:31]} {[%emt
00:00:11]} 57. Kb2 {[%clk 00:03:29]} {[%emt 00:00:22]} b4 {[%clk 00:21:13]}
{[%emt 00:00:48]} 58. Ne2 {[%clk 00:03:23]} {[%emt 00:00:36]} Kc5 {[%clk
00:21:20]} {[%emt 00:00:23]} 59. Kb3 {[%clk 00:03:05]} {[%emt 00:00:48]} e5
{[%clk 00:21:40]} {[%emt 00:00:10]} 60. Ng3 {[%clk 00:03:16]} {[%emt 00:00:18]}
a4+ {[%clk 00:21:58]} {[%emt 00:00:13]} 61. Kxa4 {[%clk 00:03:34]} {[%emt
00:00:12]} Bxc2+ {[%clk 00:22:17]} {[%emt 00:00:50]} 62. Ka5 {[%clk 00:03:57]}
{[%emt 00:00:08]} b3 {[%clk 00:22:36]} {[%emt 00:00:12]} 63. Ne2 {[%clk
00:04:17]} {[%emt 00:00:09]} b2 {[%clk 00:22:59]} {[%emt 00:00:08]} 64. Nc3
{[%clk 00:04:34]} {[%emt 00:00:12]} Kc4 {[%clk 00:23:21]} {[%emt 00:00:08]} 65.
Nb1 {[%clk 00:04:46]} {[%emt 00:00:19]} Bxb1 {[%clk 00:23:45]} {[%emt
00:00:05]} 0-1

[Event "Nové Hrady - Open"]
[Site "Nové Hrady, Czech Republic"]
[Date "2023.08.13"]
[Round "1.7"]
[White "Pospěch, Radim"]
[Black "Slabý, Martin"]
[Result "1-0"]
[TimeControl "2x90min+30s"]
[WhiteFideId "329835"]
[BlackFideId "23713593"]
[WhiteElo "1874"]
[BlackElo "1300"]

1. d4 {[%clk 01:30:57]} {[%emt 00:00:03]} Nf6 {[%clk 01:30:48]} {[%emt
00:00:13]} 2. c4 {[%clk 01:31:20]} {[%emt 00:00:07]} Nc6 {[%clk 01:30:42]}
{[%emt 00:00:37]} 3. Nc3 {[%clk 01:30:10]} {[%emt 00:01:38]} e5 {[%clk
01:29:56]} {[%emt 00:01:16]} 4. d5 {[%clk 01:29:56]} {[%emt 00:00:44]} Ne7
{[%clk 01:29:18]} {[%emt 00:01:08]} 5. e4 {[%clk 01:29:03]} {[%emt 00:01:23]}
Ng6 {[%clk 01:29:11]} {[%emt 00:00:38]} 6. Be3 {[%clk 01:19:07]} {[%emt
00:10:25]} Bb4 {[%clk 01:28:27]} {[%emt 00:01:14]} 7. f3 {[%clk 01:16:20]}
{[%emt 00:03:17]} O-O {[%clk 01:28:15]} {[%emt 00:00:42]} 8. Nge2 {[%clk
01:13:33]} {[%emt 00:03:17]} d6 {[%clk 01:26:57]} {[%emt 00:01:49]} 9. a3
{[%clk 01:12:12]} {[%emt 00:01:51]} Bxc3+ {[%clk 01:26:39]} {[%emt 00:00:47]}
10. Nxc3 {[%clk 01:12:21]} {[%emt 00:00:21]} Nh5 {[%clk 01:24:22]} {[%emt
00:02:47]} 11. Qd2 {[%clk 01:07:58]} {[%emt 00:04:53]} Qh4+ {[%clk 01:17:07]}
{[%emt 00:07:45]} 12. g3 {[%clk 01:06:18]} {[%emt 00:02:10]} Nxg3 {[%clk
01:09:22]} {[%emt 00:08:15]} 13. Bf2 {[%clk 01:05:55]} {[%emt 00:00:52]} Nxh1
{[%clk 01:07:59]} {[%emt 00:01:54]} 14. Bxh4 {[%clk 01:05:07]} {[%emt
00:01:18]} Nxh4 {[%clk 01:07:49]} {[%emt 00:00:40]} 15. Bg2 {[%clk 01:04:53]}
{[%emt 00:00:45]} Bh3 {[%clk 01:01:49]} {[%emt 00:06:30]} 16. Bxh1 {[%clk
01:03:37]} {[%emt 00:01:45]} f5 {[%clk 01:01:25]} {[%emt 00:00:54]} 17. Qg5
{[%clk 00:59:21]} {[%emt 00:04:47]} Ng6 {[%clk 00:57:36]} {[%emt 00:04:19]} 18.
O-O-O {[%clk 00:58:43]} {[%emt 00:01:08]} Nf4 {[%clk 00:54:25]} {[%emt
00:03:39]} 19. Rg1 {[%clk 00:51:11]} {[%emt 00:08:03]} Rf7 {[%clk 00:53:11]}
{[%emt 00:01:44]} 20. Kd2 {[%clk 00:47:13]} {[%emt 00:04:28]} a6 {[%clk
00:52:33]} {[%emt 00:01:09]} 21. Qh4 {[%clk 00:43:48]} {[%emt 00:03:54]} Raf8
{[%clk 00:35:09]} {[%emt 00:17:53]} 22. Ne2 {[%clk 00:39:31]} {[%emt 00:04:49]}
fxe4 {[%clk 00:30:05]} {[%emt 00:05:33]} 23. Nxf4 {[%clk 00:39:18]} {[%emt
00:00:43]} Bd7 {[%clk 00:27:30]} {[%emt 00:03:05]} 24. Ne6 {[%clk 00:38:34]}
{[%emt 00:01:14]} Bxe6 {[%clk 00:27:20]} {[%emt 00:00:40]} 25. dxe6 {[%clk
00:38:55]} {[%emt 00:00:08]} Rf4 {[%clk 00:24:54]} {[%emt 00:00:37]} 26. Qg5
{[%clk 00:35:55]} {[%emt 00:05:50]} g6 {[%clk 00:20:44]} {[%emt 00:04:40]} 27.
e7 {[%clk 00:32:52]} {[%emt 00:03:33]} Re8 {[%clk 00:20:02]} {[%emt 00:01:12]}
28. fxe4 {[%clk 00:28:34]} {[%emt 00:04:48]} Rf2+ {[%clk 00:19:08]} {[%emt
00:01:23]} 29. Kc1 {[%clk 00:28:36]} {[%emt 00:00:29]} Rxh2 {[%clk 00:19:15]}
{[%emt 00:00:23]} 30. Qf6 {[%clk 00:28:46]} {[%emt 00:00:19]} 1-0

[Event "Nové Hrady - Open"]
[Site "Nové Hrady, Czech Republic"]
[Date "2023.08.13"]
[Round "1.8"]
[White "Berkovec, Jakub"]
[Black "Matyska, Jiří"]
[Result "1-0"]
[TimeControl "2x90min+30s"]
[WhiteFideId "23727080"]
[BlackFideId "309370"]
[WhiteElo "1288"]
[BlackElo "1852"]

1. e4 {[%clk 01:30:58]} {[%emt 00:00:03]} b6 {[%clk 01:30:52]} {[%emt
00:00:08]} 2. d4 {[%clk 01:30:39]} {[%emt 00:00:50]} Bb7 {[%clk 01:31:13]}
{[%emt 00:00:08]} 3. Nc3 {[%clk 01:29:44]} {[%emt 00:01:25]} e6 {[%clk
01:31:33]} {[%emt 00:00:09]} 4. Bd3 {[%clk 01:27:20]} {[%emt 00:02:54]} f5
{[%clk 01:30:53]} {[%emt 00:01:10]} 5. Nf3 {[%clk 01:25:37]} {[%emt 00:02:13]}
Bb4 {[%clk 01:30:30]} {[%emt 00:00:54]} 6. Qe2 {[%clk 01:23:06]} {[%emt
00:03:00]} Nf6 {[%clk 01:22:07]} {[%emt 00:08:53]} 7. exf5 {[%clk 01:14:58]}
{[%emt 00:08:39]} O-O {[%clk 01:22:08]} {[%emt 00:00:14]} 8. O-O {[%clk
01:13:11]} {[%emt 00:02:32]} Bxc3 {[%clk 01:20:21]} {[%emt 00:02:16]} 9. bxc3
{[%clk 01:13:14]} {[%emt 00:00:28]} exf5 {[%clk 01:20:44]} {[%emt 00:00:06]} 10.
Bg5 {[%clk 01:11:47]} {[%emt 00:01:58]} Qc8 {[%clk 01:17:38]} {[%emt 00:03:36]}
11. Bxf6 {[%clk 01:09:08]} {[%emt 00:03:09]} Rxf6 {[%clk 01:17:48]} {[%emt
00:00:19]} 12. Bc4+ {[%clk 01:06:45]} {[%emt 00:02:54]} d5 {[%clk 01:18:00]}
{[%emt 00:00:17]} 13. Bd3 {[%clk 01:07:03]} {[%emt 00:00:13]} c5 {[%clk
01:10:39]} {[%emt 00:07:51]} 14. Qd2 {[%clk 01:02:10]} {[%emt 00:05:22]} Nc6
{[%clk 01:04:35]} {[%emt 00:06:34]} 15. Rfe1 {[%clk 01:02:00]} {[%emt
00:00:40]} Qf8 {[%clk 01:01:13]} {[%emt 00:03:52]} 16. Bf1 {[%clk 01:00:19]}
{[%emt 00:02:12]} Rc8 {[%clk 00:57:08]} {[%emt 00:04:35]} 17. Ne5 {[%clk
00:59:54]} {[%emt 00:00:54]} Re6 {[%clk 00:54:24]} {[%emt 00:03:13]} 18. Nxc6
{[%clk 00:55:36]} {[%emt 00:04:49]} Rexc6 {[%clk 00:54:13]} {[%emt 00:00:42]}
19. Bd3 {[%clk 00:53:41]} {[%emt 00:02:25]} Qf6 {[%clk 00:50:59]} {[%emt
00:03:44]} 20. Re5 {[%clk 00:53:40]} {[%emt 00:00:31]} cxd4 {[%clk 00:49:47]}
{[%emt 00:01:42]} 21. cxd4 {[%clk 00:54:02]} {[%emt 00:00:09]} g6 {[%clk
00:48:22]} {[%emt 00:01:54]} 22. Rae1 {[%clk 00:53:47]} {[%emt 00:00:44]} R8c7
{[%clk 00:42:43]} {[%emt 00:06:09]} 23. Qh6 {[%clk 00:53:25]} {[%emt 00:00:53]}
Qd6 {[%clk 00:35:22]} {[%emt 00:07:51]} 24. Re8+ {[%clk 00:53:02]} {[%emt
00:00:53]} Kf7 {[%clk 00:35:50]} {[%emt 00:00:01]} 25. Qxh7+ {[%clk 00:51:17]}
{[%emt 00:02:16]} Kf6 {[%clk 00:35:33]} {[%emt 00:00:47]} 26. Qh8+ {[%clk
00:49:59]} {[%emt 00:01:48]} Kf7 {[%clk 00:31:57]} {[%emt 00:04:05]} 27. Qh7+
{[%clk 00:47:57]} {[%emt 00:02:32]} Kf6 {[%clk 00:32:05]} {[%emt 00:00:10]} 28.
Qh6 {[%clk 00:47:17]} {[%emt 00:01:23]} Kf7 {[%clk 00:28:25]} {[%emt 00:04:09]}
29. Rh8 {[%clk 00:45:52]} {[%emt 00:01:56]} Kf6 {[%clk 00:15:34]} {[%emt
00:13:21]} 30. Rf8+ {[%clk 00:45:49]} {[%emt 00:00:32]} Rf7 {[%clk 00:16:02]}
{[%emt 00:00:02]} 31. Qh8+ {[%clk 00:46:03]} {[%emt 00:00:17]} 1-0

[Event "Nové Hrady - Open"]
[Site "Nové Hrady, Czech Republic"]
[Date "2023.08.13"]
[Round "1.9"]
[White "Mošnička, Jan"]
[Black "Hejda, Ondřej"]
[Result "1/2-1/2"]
[TimeControl "2x90min+30s"]
[WhiteFideId "329398"]
[BlackFideId "23713623"]
[WhiteElo "1784"]
[BlackElo "1246"]

1. e4 {[%clk 01:30:55]} {[%emt 00:00:06]} d5 {[%clk 01:30:45]} {[%emt
00:00:14]} 2. exd5 {[%clk 01:31:17]} {[%emt 00:00:09]} Qxd5 {[%clk 01:31:09]}
{[%emt 00:00:06]} 3. Nc3 {[%clk 01:31:31]} {[%emt 00:00:16]} Qa5 {[%clk
01:31:18]} {[%emt 00:00:21]} 4. d4 {[%clk 01:31:19]} {[%emt 00:00:42]} c6
{[%clk 01:30:57]} {[%emt 00:00:51]} 5. Nf3 {[%clk 01:31:39]} {[%emt 00:00:09]}
Bg4 {[%clk 01:31:02]} {[%emt 00:00:26]} 6. Be2 {[%clk 01:31:28]} {[%emt
00:00:40]} Nf6 {[%clk 01:29:41]} {[%emt 00:01:51]} 7. O-O {[%clk 01:31:03]}
{[%emt 00:00:56]} e6 {[%clk 01:28:15]} {[%emt 00:01:57]} 8. Ne5 {[%clk
01:30:30]} {[%emt 00:01:02]} Bxe2 {[%clk 01:25:44]} {[%emt 00:03:01]} 9. Qxe2
{[%clk 01:30:45]} {[%emt 00:00:14]} Nbd7 {[%clk 01:25:37]} {[%emt 00:00:37]} 10.
Nxd7 {[%clk 01:27:26]} {[%emt 00:03:48]} Nxd7 {[%clk 01:25:26]} {[%emt
00:00:42]} 11. Ne4 {[%clk 01:27:34]} {[%emt 00:00:22]} Qd5 {[%clk 01:21:19]}
{[%emt 00:04:35]} 12. Rd1 {[%clk 01:25:31]} {[%emt 00:02:35]} Be7 {[%clk
01:14:18]} {[%emt 00:07:32]} 13. c4 {[%clk 01:22:42]} {[%emt 00:03:18]} Qa5
{[%clk 01:12:36]} {[%emt 00:02:12]} 14. Bd2 {[%clk 01:22:34]} {[%emt 00:00:38]}
Qc7 {[%clk 01:12:50]} {[%emt 00:00:17]} 15. Bc3 {[%clk 01:17:42]} {[%emt
00:05:22]} Nf6 {[%clk 01:10:17]} {[%emt 00:03:03]} 16. d5 {[%clk 01:04:50]}
{[%emt 00:13:20]} cxd5 {[%clk 01:06:26]} {[%emt 00:04:23]} 17. Nxf6+ {[%clk
00:59:32]} {[%emt 00:05:47]} Bxf6 {[%clk 01:05:51]} {[%emt 00:01:06]} 18. Bxf6
{[%clk 00:59:32]} {[%emt 00:00:30]} gxf6 {[%clk 01:05:59]} {[%emt 00:00:22]} 19.
Rxd5 {[%clk 00:57:31]} {[%emt 00:02:31]} Rd8 {[%clk 01:01:53]} {[%emt
00:04:35]} 20. Rxd8+ {[%clk 00:55:58]} {[%emt 00:02:02]} Kxd8 {[%clk 01:01:24]}
{[%emt 00:01:01]} 21. Qe4 {[%clk 00:55:28]} {[%emt 00:00:59]} Kc8 {[%clk
00:58:38]} {[%emt 00:03:17]} 22. b3 {[%clk 00:48:59]} {[%emt 00:06:59]} f5
{[%clk 00:56:30]} {[%emt 00:02:37]} 23. Qd4 {[%clk 00:47:48]} {[%emt 00:01:38]}
Rd8 {[%clk 00:55:15]} {[%emt 00:01:49]} 24. Qxa7 {[%clk 00:48:09]} {[%emt
00:00:09]} Qe5 {[%clk 00:55:33]} {[%emt 00:00:10]} 25. Rf1 {[%clk 00:47:07]}
{[%emt 00:01:33]} Qe4 {[%clk 00:53:33]} {[%emt 00:02:32]} 26. Qc5+ {[%clk
00:46:01]} {[%emt 00:01:34]} Kb8 {[%clk 00:53:15]} {[%emt 00:00:48]} 27. a4
{[%clk 00:45:46]} {[%emt 00:00:44]} Rg8 {[%clk 00:52:41]} {[%emt 00:01:05]} 28.
f3 {[%clk 00:45:42]} {[%emt 00:00:34]} Qc2 {[%clk 00:52:54]} {[%emt 00:00:16]}
29. Qe5+ {[%clk 00:44:02]} {[%emt 00:02:11]} Kc8 {[%clk 00:52:36]} {[%emt
00:00:48]} 30. Qc5+ {[%clk 00:44:17]} {[%emt 00:00:16]} Kb8 {[%clk 00:52:54]}
{[%emt 00:00:11]} 31. Qe5+ {[%clk 00:44:18]} {[%emt 00:00:30]} Qe4 {[%emt
00:00:08]} 1/2-1/2

[Event "Nové Hrady - Open"]
[Site "Nové Hrady, Czech Republic"]
[Date "2023.08.13"]
[Round "1.10"]
[White "Hokr, Matyáš"]
[Black "Steinbauer, Sebastián"]
[Result "0-1"]
[TimeControl "2x90min+30s"]
[WhiteFideId "23734663"]
[BlackFideId "399272"]
[WhiteElo "1228"]
[BlackElo "1782"]

1. Nf3 {[%clk 01:30:39]} {[%emt 00:00:21]} c5 {[%clk 01:30:45]} {[%emt
00:00:17]} 2. b3 {[%clk 01:30:44]} {[%emt 00:00:23]} d5 {[%clk 01:31:08]}
{[%emt 00:00:08]} 3. e3 {[%clk 01:30:28]} {[%emt 00:00:46]} f6 {[%clk
01:31:29]} {[%emt 00:00:09]} 4. d4 {[%clk 01:30:22]} {[%emt 00:00:36]} Nc6
{[%clk 01:31:46]} {[%emt 00:00:13]} 5. Bb2 {[%clk 01:30:16]} {[%emt 00:00:35]}
Bg4 {[%clk 01:31:56]} {[%emt 00:00:21]} 6. Bb5 {[%clk 01:26:54]} {[%emt
00:03:52]} e6 {[%clk 01:31:13]} {[%emt 00:01:14]} 7. Bxc6+ {[%clk 01:26:07]}
{[%emt 00:01:16]} bxc6 {[%clk 01:31:41]} {[%emt 00:00:02]} 8. h3 {[%clk
01:25:55]} {[%emt 00:00:42]} Bh5 {[%clk 01:32:03]} {[%emt 00:00:07]} 9. Nbd2
{[%clk 01:25:16]} {[%emt 00:01:10]} Qa5 {[%clk 01:31:22]} {[%emt 00:01:11]} 10.
O-O {[%clk 01:24:38]} {[%emt 00:01:08]} Bd6 {[%clk 01:31:06]} {[%emt 00:00:46]}
11. Qe1 {[%clk 01:22:55]} {[%emt 00:02:13]} Ne7 {[%clk 01:30:23]} {[%emt
00:01:13]} 12. a3 {[%clk 01:17:13]} {[%emt 00:06:12]} O-O {[%clk 01:29:33]}
{[%emt 00:01:20]} 13. Rc1 {[%clk 01:11:56]} {[%emt 00:05:47]} Rfb8 {[%clk
01:28:09]} {[%emt 00:01:55]} 14. Kh1 {[%clk 01:07:27]} {[%emt 00:04:57]} c4
{[%clk 01:25:18]} {[%emt 00:03:22]} 15. b4 {[%clk 01:04:38]} {[%emt 00:03:19]}
Qb6 {[%clk 01:23:47]} {[%emt 00:02:01]} 16. Ra1 {[%clk 01:03:45]} {[%emt
00:01:23]} a5 {[%clk 01:24:01]} {[%emt 00:00:16]} 17. c3 {[%clk 01:00:06]}
{[%emt 00:04:10]} axb4 {[%clk 01:23:49]} {[%emt 00:00:41]} 18. cxb4 {[%clk
00:59:31]} {[%emt 00:01:06]} Nc8 {[%clk 01:23:23]} {[%emt 00:00:56]} 19. Bc3
{[%clk 00:58:39]} {[%emt 00:01:21]} Na7 {[%clk 01:23:39]} {[%emt 00:00:13]} 20.
Qc1 {[%clk 00:57:27]} {[%emt 00:01:43]} Nb5 {[%clk 01:23:59]} {[%emt 00:00:10]}
21. Rg1 {[%clk 00:56:11]} {[%emt 00:01:46]} Nxc3 {[%clk 01:22:38]} {[%emt
00:01:52]} 22. Qxc3 {[%clk 00:55:20]} {[%emt 00:01:21]} Rb7 {[%clk 01:21:07]}
{[%emt 00:02:01]} 23. Rgb1 {[%clk 00:55:04]} {[%emt 00:00:45]} Rba7 {[%clk
01:20:46]} {[%emt 00:00:51]} 24. Rb2 {[%clk 00:47:34]} {[%emt 00:08:00]} Ra4
{[%clk 01:21:02]} {[%emt 00:00:14]} 25. Rbb1 {[%clk 00:45:47]} {[%emt
00:02:18]} Qa7 {[%clk 01:21:22]} {[%emt 00:00:09]} 26. Ne1 {[%clk 00:37:40]}
{[%emt 00:08:36]} Rxa3 {[%clk 01:21:29]} {[%emt 00:00:23]} 27. Rxa3 {[%clk
00:38:00]} {[%emt 00:00:10]} Qxa3 {[%clk 01:21:54]} {[%emt 00:00:06]} 28. Qxa3
Rxa3 {[%clk 01:22:22]} 29. g4 {[%clk 00:37:22]} {[%emt 00:01:13]} Bg6 {[%clk
01:22:51]} 30. Rb2 {[%clk 00:37:40]} {[%emt 00:00:14]} c3 {[%clk 01:23:07]}
{[%emt 00:00:14]} 0-1

[Event "Nové Hrady - Open"]
[Site "Nové Hrady, Czech Republic"]
[Date "2023.08.14"]
[Round "2.1"]
[White "Steinbauer, Sebastián"]
[Black "Žilavý, Jan"]
[Result "0-1"]
[TimeControl "2x90min+30s"]
[WhiteFideId "399272"]
[BlackFideId "350141"]
[WhiteElo "1782"]
[BlackElo "2130"]

1. e4 {[%clk 01:30:56]} {[%emt 00:00:05]} c5 {[%clk 01:30:41]} {[%emt
00:00:19]} 2. Nf3 {[%clk 01:31:14]} {[%emt 00:00:12]} Nc6 {[%clk 01:31:04]}
{[%emt 00:00:07]} 3. Bc4 {[%clk 01:31:12]} {[%emt 00:00:32]} g6 {[%clk
01:29:16]} {[%emt 00:02:17]} 4. d4 {[%clk 01:31:27]} {[%emt 00:00:16]} cxd4
{[%clk 01:29:32]} {[%emt 00:00:13]} 5. c3 {[%clk 01:31:56]} {[%emt 00:00:02]}
e6 {[%clk 01:24:03]} {[%emt 00:05:59]} 6. O-O {[%clk 01:31:02]} {[%emt
00:01:24]} Bg7 {[%clk 01:22:10]} {[%emt 00:02:22]} 7. Nxd4 {[%clk 01:29:50]}
{[%emt 00:01:42]} Nxd4 {[%clk 01:20:45]} {[%emt 00:01:56]} 8. cxd4 {[%clk
01:30:18]} d5 {[%clk 01:18:46]} {[%emt 00:02:29]} 9. exd5 {[%clk 01:29:48]}
{[%emt 00:00:59]} exd5 {[%clk 01:19:10]} {[%emt 00:00:07]} 10. Bb5+ {[%clk
01:25:39]} {[%emt 00:04:40]} Bd7 {[%clk 01:19:22]} {[%emt 00:00:17]} 11. Nc3
{[%clk 01:25:38]} {[%emt 00:00:32]} Ne7 {[%clk 01:17:44]} {[%emt 00:02:07]} 12.
Bg5 {[%clk 01:19:37]} {[%emt 00:06:31]} f6 {[%clk 01:16:31]} {[%emt 00:01:43]}
13. Bf4 {[%clk 01:20:05]} {[%emt 00:00:03]} O-O {[%clk 01:06:46]} {[%emt
00:10:14]} 14. Qb3 {[%clk 01:17:35]} {[%emt 00:03:00]} Bc6 {[%clk 01:06:00]}
{[%emt 00:01:16]} 15. Rfe1 {[%clk 01:16:57]} {[%emt 00:01:08]} g5 {[%clk
01:04:19]} {[%emt 00:02:11]} 16. Bxc6 {[%clk 01:11:14]} {[%emt 00:06:13]} bxc6
{[%clk 01:04:13]} {[%emt 00:00:35]} 17. Qb7 {[%clk 01:07:14]} {[%emt 00:04:31]}
Rf7 {[%clk 01:00:37]} {[%emt 00:04:06]} 18. Bc7 {[%clk 01:05:57]} {[%emt
00:01:48]} Ng6 {[%clk 00:50:02]} {[%emt 00:11:12]} 19. Bxd8 {[%clk 00:59:18]}
{[%emt 00:07:09]} Rxb7 {[%clk 00:50:26]} {[%emt 00:00:06]} 20. Ba5 {[%clk
00:59:41]} {[%emt 00:00:08]} Rxb2 {[%clk 00:48:58]} {[%emt 00:01:57]} 21. Rad1
{[%clk 00:58:46]} {[%emt 00:01:25]} Kf7 {[%clk 00:47:39]} {[%emt 00:01:48]} 22.
a3 {[%clk 00:59:04]} {[%emt 00:00:14]} Bf8 {[%clk 00:46:57]} {[%emt 00:01:11]}
23. Rb1 {[%clk 00:58:54]} {[%emt 00:00:40]} Rab8 {[%clk 00:45:29]} {[%emt
00:01:58]} 24. a4 {[%clk 00:58:04]} {[%emt 00:01:20]} Rxb1 {[%clk 00:44:26]}
{[%emt 00:01:33]} 25. Rxb1 {[%clk 00:58:32]} {[%emt 00:00:02]} Rxb1+ {[%clk
00:44:48]} {[%emt 00:00:07]} 26. Nxb1 {[%clk 00:59:00]} {[%emt 00:00:03]} Ke6
{[%clk 00:42:45]} {[%emt 00:02:32]} 27. Kf1 {[%clk 00:59:13]} {[%emt 00:00:18]}
c5 {[%clk 00:41:50]} {[%emt 00:01:25]} 28. dxc5 {[%clk 00:59:17]} {[%emt
00:00:26]} Bxc5 {[%clk 00:42:14]} {[%emt 00:00:06]} 29. Nc3 {[%clk 00:59:29]}
{[%emt 00:00:18]} d4 {[%clk 00:39:43]} {[%emt 00:03:01]} 30. Nb5 {[%clk
00:59:58]} Nf4 {[%clk 00:36:07]} {[%emt 00:04:06]} 31. Bc7 {[%clk 00:58:05]}
{[%emt 00:02:23]} a6 {[%clk 00:35:44]} {[%emt 00:00:53]} 32. Bxf4 {[%clk
00:57:26]} {[%emt 00:01:09]} axb5 {[%clk 00:36:07]} {[%emt 00:00:07]} 0-1